[Event "GER-chT Youth Countries 2018"]
[Site "Wurzburg"]
[Date "2018.10.05"]
[Round "4"]
[White "Oberhofer, Cedric"]
[Black "Joeres, Stefan"]
[Result "1/2-1/2"]
[ECO "B34"]
[WhiteElo "2213"]
[BlackElo "2043"]
[Annotator "NA"]
[PlyCount "97"]
[EventDate "2018.10.03"]
[EventType "team-tourn"]
[EventCountry "GER"]
[SourceTitle "playchess.com"]
[Source "ChessBase"]
[SourceQuality "1"]
[TimeControl "40/5400+30:1800+30"]

1. e4 {[%emt 0:00:00]} c5 {[%emt 0:00:00]} 2. Nf3 {[%emt 0:00:00]} Nc6 {[%emt 0:00:00]} 3. d4 {[%emt 0:00:00]} cxd4 {[%emt 0:00:00]} 4. Nxd4 {[%emt 0:00:00]} g6 {[%emt 0:00:00]} 5. Nc3 {[%emt 0:00:00]} Bg7 {[%emt 0:00:00]} 6. Be3 {[%emt 0:00:00]} Nf6 {[%emt 0:00:00]} 7. Nxc6 {[%emt 0:00:03]} bxc6 {[%emt 0:00:00]} 8. e5 {[%emt 0:00:05]} Ng8 {[%emt 0:00:13]} 9. f4 {[%emt 0:00:08]} f6 {[%emt 0:00:14]} 10. e6 {[%emt 0:00:57]} d5 {[%emt 0:00:42] LiveBook: 3 Games} 11. f5 {[%emt 0:00:08]} Qd6 {[%emt 0:00:16]} 12. g4 $11 {[%emt 0:13:57]} Qe5 {[%emt 0:06:38]} 13. Qf3 {[%emt 0:02:53]} h5 {[%emt 0:03:54]} 14. Ne2 {[%emt 0:17:10]} hxg4 {[%emt 0:02:03]} 15. Qxg4 {[%emt 0:00:20]} Qxf5 {[%emt 0:00:04]} 16. Qxf5 {[%emt 0:00:10]} gxf5 {[%emt 0:00:06]} 17. Rg1 {[%emt 0:10:39]} Kf8 {[%emt 0:01:35]} 18. Nf4 {[%emt 0:07:17]} Rxh2 {[%emt 0:20:58]} 19. Ng6+ {[%emt 0:02:25]} Ke8 {[%emt 0:00:35]} 20. Nxe7 {[%emt 0:01:20]} Nxe7 {[%emt 0:01:16]} 21. Rxg7 {[%emt 0:00:05]} Bxe6 {[%emt 0:06:58]} 22. Bc5 {[%emt 0:01:06]} Bf7 {[%emt 0:00:04]} 23. O-O-O {[%emt 0:00:17]} Ng6 {[%emt 0:00:07]} 24. Bd3 {[%emt 0:09:30]} Ne5 {[%emt 0:10:57]} 25. Bxf5 {[%emt 0:00:43]} Rb8 {[%emt 0:00:51]} 26. a4 {[%emt 0:03:23]} Rb7 {[%emt 0:01:50]} 27. Rf1 {[%emt 0:05:20]} Rh6 {[%emt 0:09:11]} 28. b3 {[%emt 0:01:13]} a5 {[%emt 0:08:23]} 29. Bd6 {[%emt 0:07:55]} Re7 {[%emt 0:02:12]} 30. Rg3 {[%emt 0:06:24]} Ra7 {[%emt 0:01:48]} 31. Re3 {[%emt 0:02:11]} Bg6 {[%emt 0:01:11]} 32. Bxe5 {[%emt 0:00:59]} fxe5 {[%emt 0:00:07]} 33. Rxe5+ {[%emt 0:00:46]} Re7 {[%emt 0:01:10]} 34. Rfe1 {[%emt 0:01:14]} Rxe5 {[%emt 0:00:06]} 35. Rxe5+ {[%emt 0:00:02]} Kf7 {[%emt 0:00:08]} 36. Bxg6+ {[%emt 0:01:51]} Rxg6 {[%emt 0:00:06]} 37. Kd2 {[%emt 0:01:44]} Re6 {[%emt 0:01:19]} 38. Rh5 {[%emt 0:00:14]} Ke7 {[%emt 0:07:55]} 39. Rh7+ {[%emt 0:01:29]} Kd6 {[%emt 0:00:01]} 40. Ra7 {[%emt 0:00:10]} Rh6 {[%emt 0:01:32]} 41. Rxa5 {[%emt 0:32:01]} Rh1 {[%emt 0:30:34]} 42. Ra8 {[%emt 0:02:39]} c5 {[%emt 0:00:30]} 43. Rg8 {[%emt 0:00:00]} d4 {[%emt 0:00:00]} 44. Rg3 {[%emt 0:00:00]} Kd5 {[%emt 0:00:00]} 45. Rg5+ {[%emt 0:00:00]} Kc6 {[%emt 0:00:00]} 46. Rg3 {[%emt 0:00:00]} Kd5 {[%emt 0:00:00]} 47. Kd3 {[%emt 0:00:00]} Rd1+ {[%emt 0:00:00]} 48. Ke2 {[%emt 0:00:00]} Rc1 {[%emt 0:00:00]} 49. Kd2 {[%emt 0:00:00]} 1/2-1/2

[Event "GER-chT Youth Countries 2018"]
[Site "Wurzburg"]
[Date "2018.10.05"]
[Round "4"]
[White "Silber, Kevin"]
[Black "Weller, Uli"]
[Result "1/2-1/2"]
[ECO "B36"]
[WhiteElo "2205"]
[BlackElo "2123"]
[Annotator "NA"]
[PlyCount "35"]
[EventDate "2018.10.03"]
[EventType "team-tourn"]
[EventCountry "GER"]
[SourceTitle "playchess.com"]
[Source "ChessBase"]
[SourceQuality "1"]
[TimeControl "40/5400+30:1800+30"]

{[%evp 15,27,41,30,41,46,33,50,31,22,11,23,37,37,37]} 1. c4 {[%emt 0:00:00]} c5 {[%emt 0:00:00]} 2. e4 {[%emt 0:00:00]} Nc6 {[%emt 0:00:04]} 3. Ne2 {[%emt 0:00:00]} g6 {[%emt 0:00:10]} 4. d4 {[%emt 0:00:11]} cxd4 {[%emt 0:00:10]} 5. Nxd4 {[%emt 0:00:05]} Nf6 {[%emt 0:00:11]} 6. Nc3 {[%emt 0:00:09]} Nxd4 {[%emt 0:00:18]} 7. Qxd4 {[%emt 0:00:07]} d6 {[%emt 0:00:15]} 8. Be2 {[%emt 0:02:58]} Bg7 {[%emt 0:00:15]} 9. Be3 {[%emt 0:01:16]} O-O {[%emt 0:00:30]} 10. Qd2 {[%emt 0:00:47]} Be6 {[%emt 0:01:04]} 11. O-O {[%emt 0:00:19]} Qa5 {[%emt 0:01:27]} 12. Rac1 {[%emt 0:01:55]} Rfc8 {[%emt 0:00:28]} 13. b3 {[%emt 0:00:18] LiveBook: 83 Games} a6 {[%emt 0:01:18]} 14. f4 $14 {[%emt 0:03:54]} Rab8 {[%emt 0:25:42]} 15. Ba7 {[%emt 0:02:56]} Ra8 {[%emt 0:00:27]} 16. Be3 {[%emt 0:01:50]} Rab8 {[%emt 0:02:50]} 17. Ba7 {[%emt 0:13:36]} Ra8 {[%emt 0:00:14]} 18. Be3 {[%emt 0:16:28]} 1/2-1/2

[Event "GER-chT Youth Countries 2018"]
[Site "Wurzburg"]
[Date "2018.10.05"]
[Round "4"]
[White "Wong, Gengchun"]
[Black "Noeldner, Julian"]
[Result "1-0"]
[ECO "A14"]
[WhiteElo "2194"]
[BlackElo "2024"]
[Annotator "NA"]
[PlyCount "117"]
[EventDate "2018.10.03"]
[EventType "team-tourn"]
[EventCountry "GER"]
[SourceTitle "playchess.com"]
[Source "ChessBase"]
[SourceQuality "1"]
[TimeControl "40/5400+30:1800+30"]

1. Nf3 {[%emt 0:00:00]} d5 {[%emt 0:00:22]} 2. c4 {[%emt 0:00:18]} e6 {[%emt 0:00:58]} 3. g3 {[%emt 0:00:09]} Nf6 {[%emt 0:01:10]} 4. Bg2 {[%emt 0:00:06]} Be7 {[%emt 0:00:10]} 5. O-O {[%emt 0:00:06]} O-O {[%emt 0:00:05]} 6. d4 {[%emt 0:00:58]} dxc4 {[%emt 0:00:36]} 7. Qc2 {[%emt 0:00:06]} a6 {[%emt 0:00:49]} 8. Qxc4 {[%emt 0:01:30]} b5 {[%emt 0:00:06]} 9. Qc2 {[%emt 0:00:03]} Bb7 {[%emt 0:00:03]} 10. Bd2 {[%emt 0:00:07]} Be4 {[%emt 0:00:40]} 11. Qc1 {[%emt 0:00:06]} c6 {[%emt 0:00:04]} 12. Be3 {[%emt 0:03:50]} Nbd7 $11 {[%emt 0:06:49] LiveBook: 22 Games} 13. Rd1 {[%emt 0:10:32]} Rc8 {[%emt 0:01:58]} 14. Nc3 {[%emt 0:14:57]} Bg6 {[%emt 0:02:02]} 15. Nh4 {[%emt 0:20:59]} Bh5 {[%emt 0:01:44]} 16. Qd2 {[%emt 0:02:46]} Nd5 {[%emt 0:08:02]} 17. Nf3 {[%emt 0:01:36]} Qb6 {[%emt 0:11:26]} 18. a3 {[%emt 0:13:44]} Rfd8 {[%emt 0:11:13]} 19. b4 {[%emt 0:03:23]} Nxe3 {[%emt 0:04:13]} 20. Qxe3 {[%emt 0:01:01]} a5 {[%emt 0:00:07]} 21. Rab1 {[%emt 0:03:13]} Nf6 {[%emt 0:02:11]} 22. Qd2 {[%emt 0:16:54]} Bxf3 {[%emt 0:11:38]} 23. Bxf3 {[%emt 0:00:39]} axb4 {[%emt 0:00:06]} 24. axb4 {[%emt 0:00:10]} e5 {[%emt 0:00:10]} 25. d5 {[%emt 0:03:24]} cxd5 {[%emt 0:01:21]} 26. Nxd5 {[%emt 0:00:09]} Nxd5 {[%emt 0:00:47]} 27. Bxd5 {[%emt 0:00:01]} Rc7 {[%emt 0:01:58]} 28. Qa2 {[%emt 0:01:26]} Bf8 {[%emt 0:00:43]} 29. Qb2 {[%emt 0:01:09]} Bd6 {[%emt 0:07:50]} 30. e4 {[%emt 0:00:19]} Rdc8 {[%emt 0:00:15]} 31. Rd2 {[%emt 0:00:58]} Kf8 {[%emt 0:12:50]} 32. Kg2 {[%emt 0:00:24]} Ra7 {[%emt 0:02:18]} 33. Qb3 {[%emt 0:00:34]} Ra4 {[%emt 0:00:23]} 34. Qf3 {[%emt 0:00:22]} Rc7 {[%emt 0:00:31]} 35. Qf5 {[%emt 0:00:51]} Bxb4 {[%emt 0:01:46]} 36. Rdb2 {[%emt 0:00:27]} Bc5 {[%emt 0:06:17]} 37. Rxb5 {[%emt 0:00:18]} Qf6 {[%emt 0:00:07]} 38. Qxf6 {[%emt 0:00:50]} gxf6 {[%emt 0:00:05]} 39. Rc1 {[%emt 0:00:27]} Bb6 {[%emt 0:02:11]} 40. Rxc7 {[%emt 0:00:05]} Bxc7 {[%emt 0:00:03]} 41. Rb7 {[%emt 0:30:04]} Bd8 {[%emt 0:30:39]} 42. Rxf7+ {[%emt 0:00:19]} Ke8 {[%emt 0:00:03]} 43. Rxh7 Rd4 {[%emt 0:00:33]} 44. h4 {[%emt 0:00:00]} Rd2 {[%emt 0:00:00]} 45. Rb7 {[%emt 0:00:00]} f5 {[%emt 0:00:00]} 46. Bc6+ {[%emt 0:00:00]} Kf8 {[%emt 0:00:00]} 47. exf5 {[%emt 0:00:00]} Rd6 {[%emt 0:00:00]} 48. Be4 {[%emt 0:00:00]} Rd4 {[%emt 0:00:00]} 49. Kf3 {[%emt 0:00:00]} Rd2 {[%emt 0:00:00]} 50. Rb5 {[%emt 0:00:00]} Bf6 {[%emt 0:00:00]} 51. Rc5 {[%emt 0:00:00]} Ra2 {[%emt 0:00:00]} 52. Rc2 {[%emt 0:00:00]} Ra4 {[%emt 0:00:00]} 53. Re2 {[%emt 0:00:00]} Kg7 {[%emt 0:00:00]} 54. Kg4 {[%emt 0:00:00]} Kh6 {[%emt 0:00:00]} 55. f3 {[%emt 0:00:00]} Ra7 {[%emt 0:00:00]} 56. Rb2 {[%emt 0:00:00]} Rg7+ {[%emt 0:00:00]} 57. Kh3 {[%emt 0:00:00]} Kh5 {[%emt 0:00:00]} 58. g4+ {[%emt 0:00:00]} Kh6 {[%emt 0:00:00]} 59. Rb6 {[%emt 0:00:00]} 1-0

[Event "GER-chT Youth Countries 2018"]
[Site "Wurzburg"]
[Date "2018.10.05"]
[Round "4"]
[White "Kopylov, Daniel"]
[Black "Wagner, Leopold Franziskus"]
[Result "1-0"]
[ECO "B13"]
[WhiteElo "2192"]
[BlackElo "1934"]
[Annotator "NA"]
[PlyCount "75"]
[EventDate "2018.10.03"]
[EventType "team-tourn"]
[EventCountry "GER"]
[SourceTitle "playchess.com"]
[Source "ChessBase"]
[SourceQuality "1"]
[TimeControl "40/5400+30:1800+30"]

1. e4 {[%emt 0:00:00]} c6 {[%emt 0:00:00]} 2. d4 {[%emt 0:00:00]} d5 {[%emt 0:00:00]} 3. exd5 {[%emt 0:00:18]} cxd5 {[%emt 0:00:00]} 4. Bd3 {[%emt 0:00:08]} Nc6 {[%emt 0:00:06]} 5. c3 {[%emt 0:00:16]} Qc7 {[%emt 0:00:09]} 6. Ne2 {[%emt 0:01:05]} Bg4 {[%emt 0:01:04]} 7. O-O {[%emt 0:00:21]} e6 {[%emt 0:00:33]} 8. Qe1 {[%emt 0:01:21]} Bd6 {[%emt 0:00:24]} 9. f3 {[%emt 0:01:47]} Bh5 {[%emt 0:00:57]} ({Not} 9... Bxh2+ $2 10. Kh1 $18) 10. Qh4 {[%emt 0:01:06]} Bg6 $14 {[%emt 0:08:42] LiveBook: 13 Games} 11. Bxg6 {[%emt 0:02:27]} fxg6 {[%emt 0:00:06]} 12. Nf4 {[%emt 0:03:07]} Bxf4 {[%emt 0:01:12]} 13. Bxf4 {[%emt 0:01:22]} Qd7 {[%emt 0:01:23]} 14. Nd2 {[%emt 0:13:02]} Nf6 {[%emt 0:00:47]} 15. Rae1 {[%emt 0:08:27]} O-O {[%emt 0:00:56]} 16. Nb3 {[%emt 0:03:54]} b6 {[%emt 0:01:11]} 17. Qh3 {[%emt 0:08:37]} Rae8 {[%emt 0:00:46]} 18. Nc1 {[%emt 0:01:21]} Nh5 {[%emt 0:00:42]} 19. Bg3 {[%emt 0:01:12]} Qf7 {[%emt 0:02:04]} 20. Bd6 {[%emt 0:02:18]} Ne7 {[%emt 0:23:46]} 21. Qxe6 {[%emt 0:01:13]} Qxe6 {[%emt 0:00:19]} 22. Rxe6 {[%emt 0:00:14]} Nc6 {[%emt 0:02:32]} 23. Ree1 {[%emt 0:06:50]} Rxe1 {[%emt 0:00:19]} 24. Rxe1 {[%emt 0:00:04]} Rd8 {[%emt 0:00:04]} 25. Bg3 {[%emt 0:10:59]} Nxg3 {[%emt 0:02:55]} 26. hxg3 {[%emt 0:00:13]} Kf7 {[%emt 0:00:18]} 27. Nd3 {[%emt 0:03:52]} Kf6 {[%emt 0:00:20]} 28. Kf2 {[%emt 0:02:24]} a5 {[%emt 0:00:25]} 29. Nf4 {[%emt 0:01:29]} Rd6 {[%emt 0:01:18]} 30. Re8 {[%emt 0:00:21]} Nd8 {[%emt 0:00:08]} 31. Re5 {[%emt 0:00:27]} a4 {[%emt 0:03:09]} 32. Nxd5+ {[%emt 0:02:47]} Kf7 {[%emt 0:00:08]} 33. Ne3 {[%emt 0:00:27]} Rc6 {[%emt 0:00:19]} 34. a3 {[%emt 0:00:41]} Nb7 {[%emt 0:00:49]} 35. Ke2 {[%emt 0:01:50]} Nd6 {[%emt 0:00:14]} 36. Kd3 {[%emt 0:01:12]} b5 {[%emt 0:00:05]} 37. Rc5 {[%emt 0:00:49]} Rb6 {[%emt 0:00:11]} 38. Rc7+ {[%emt 0:00:52]} 1-0

[Event "GER-chT Youth Countries 2018"]
[Site "Wurzburg"]
[Date "2018.10.05"]
[Round "4"]
[White "Schmider, Niklas"]
[Black "Koelle, Tobias"]
[Result "1/2-1/2"]
[ECO "C77"]
[WhiteElo "2190"]
[BlackElo "2125"]
[Annotator "NA"]
[PlyCount "138"]
[EventDate "2018.10.03"]
[EventType "team-tourn"]
[EventCountry "GER"]
[SourceTitle "playchess.com"]
[Source "ChessBase"]
[SourceQuality "1"]
[TimeControl "40/5400+30:1800+30"]

1. e4 {[%emt 0:00:00]} e5 {[%emt 0:00:00]} 2. Nf3 {[%emt 0:00:00]} Nc6 {[%emt 0:00:00]} 3. Bb5 {[%emt 0:00:00]} a6 {[%emt 0:00:00]} 4. Ba4 {[%emt 0:00:00]} Nf6 {[%emt 0:00:05]} 5. d3 {[%emt 0:00:00]} b5 {[%emt 0:00:10]} 6. Bb3 {[%emt 0:00:04]} Be7 {[%emt 0:00:05]} 7. O-O {[%emt 0:00:10]} O-O {[%emt 0:00:08]} 8. Nc3 {[%emt 0:00:13]} Bb7 {[%emt 0:02:31]} 9. a4 {[%emt 0:07:16]} b4 {[%emt 0:00:18]} 10. Nd5 {[%emt 0:00:22]} Na5 $11 {[%emt 0:04:18] LiveBook: 48 Games} 11. Nxe7+ {[%emt 0:05:14]} Qxe7 {[%emt 0:00:59]} 12. Ba2 c5 {[%emt 0:03:19]} 13. Bg5 {[%emt 0:05:32]} h6 {[%emt 0:01:28]} 14. Bh4 {[%emt 0:05:44]} Rab8 {[%emt 0:03:04]} 15. Re1 {[%emt 0:04:43]} b3 {[%emt 0:03:07]} 16. Qd2 {[%emt 0:12:51]} bxa2 {[%emt 0:06:23]} 17. Qxa5 {[%emt 0:00:10]} d6 {[%emt 0:07:01]} 18. Rxa2 {[%emt 0:12:28]} g5 {[%emt 0:04:42]} 19. Bg3 {[%emt 0:03:19]} Nh5 {[%emt 0:00:57]} 20. Nd2 {[%emt 0:17:40]} f5 {[%emt 0:02:32]} 21. exf5 {[%emt 0:02:28]} Rxf5 {[%emt 0:00:57]} 22. Raa1 {[%emt 0:04:24]} Rbf8 {[%emt 0:01:39]} 23. Re2 {[%emt 0:05:39]} Qf7 {[%emt 0:01:37]} 24. Rf1 {[%emt 0:01:23]} Rf6 {[%emt 0:15:21]} 25. b4 {[%emt 0:02:02]} cxb4 {[%emt 0:11:53]} 26. Qxb4 {[%emt 0:01:14]} Nf4 {[%emt 0:01:31]} 27. Bxf4 {[%emt 0:00:11]} gxf4 {[%emt 0:02:31]} 28. f3 {[%emt 0:00:06]} Rg6 {[%emt 0:00:44]} 29. d4 {[%emt 0:00:47]} Qg7 {[%emt 0:03:16]} 30. dxe5 {[%emt 0:00:39]} dxe5 {[%emt 0:00:01]} 31. Rb1 {[%emt 0:03:06]} Bc8 {[%emt 0:00:24]} 32. Kh1 {[%emt 0:01:04]} Bf5 {[%emt 0:00:31]} 33. Qc5 {[%emt 0:01:00]} Re8 {[%emt 0:02:54]} 34. Qd5+ {[%emt 0:00:15]} Qf7 {[%emt 0:04:09]} 35. Qxf7+ {[%emt 0:02:59]} Kxf7 {[%emt 0:00:04]} 36. Nc4 {[%emt 0:00:40]} e4 {[%emt 0:01:46]} 37. fxe4 {[%emt 0:00:05]} Bxe4 {[%emt 0:00:15]} 38. Rf1 {[%emt 0:00:27]} Kg8 {[%emt 0:00:21]} 39. Nd2 {[%emt 0:01:00]} Bc6 {[%emt 0:01:04]} 40. Rxe8+ {[%emt 0:02:45]} Bxe8 {[%emt 0:00:01]} 41. Rxf4 {[%emt 0:31:47]} Rc6 {[%emt 0:31:03]} 42. c4 {[%emt 0:00:00]} Rd6 {[%emt 0:00:00]} 43. Rf2 {[%emt 0:00:00]} Bxa4 {[%emt 0:00:00]} 44. Kg1 {[%emt 0:00:00]} Bc6 {[%emt 0:00:00]} 45. Kf1 {[%emt 0:00:00]} a5 {[%emt 0:00:00]} 46. Ke2 {[%emt 0:00:00]} a4 {[%emt 0:00:00]} 47. Kd1 {[%emt 0:00:00]} Kg7 {[%emt 0:00:00]} 48. Kc2 {[%emt 0:00:00]} Rd7 {[%emt 0:00:00]} 49. g3 {[%emt 0:00:00]} Re7 {[%emt 0:00:00]} 50. Kc3 {[%emt 0:00:00]} Re3+ {[%emt 0:00:00]} 51. Kb4 {[%emt 0:00:00]} Kg6 {[%emt 0:00:00]} 52. Kc5 {[%emt 0:00:00]} Be8 {[%emt 0:00:00]} 53. Kd4 {[%emt 0:00:00]} Re1 {[%emt 0:00:00]} 54. Ne4 {[%emt 0:00:00]} Bd7 {[%emt 0:00:00]} 55. Rf6+ {[%emt 0:00:00]} Kg7 {[%emt 0:00:00]} 56. Ra6 {[%emt 0:00:00]} Bf5 {[%emt 0:00:00]} 57. Nd6 {[%emt 0:00:00]} Bh3 {[%emt 0:00:00]} 58. Rxa4 {[%emt 0:00:50]} Re2 {[%emt 0:00:00]} 59. c5 {[%emt 0:03:36]} Rxh2 {[%emt 0:00:00]} 60. c6 {[%emt 0:01:58]} Rc2 {[%emt 0:00:00]} 61. Nc4 {[%emt 0:00:48]} Kf6 {[%emt 0:00:00]} 62. Kc5 {[%emt 0:02:01]} Be6 {[%emt 0:00:00]} 63. c7 {[%emt 0:01:02]} Ke7 {[%emt 0:00:00]} 64. Kb6 {[%emt 0:00:49]} Rc3 {[%emt 0:00:00]} 65. Na5 {[%emt 0:00:46]} Bd7 {[%emt 0:00:00]} 66. Re4+ {[%emt 0:00:14]} Kf7 {[%emt 0:00:00]} 67. g4 {[%emt 0:00:37]} Kf6 {[%emt 0:01:52]} 68. Rd4 {[%emt 0:00:36]} Ke7 {[%emt 0:00:22]} 69. Nb7 {[%emt 0:00:45]} Rc6+ {[%emt 0:00:08]} 1/2-1/2

[Event "GER-chT Youth Countries 2018"]
[Site "Wurzburg"]
[Date "2018.10.05"]
[Round "4"]
[White "Garbuz, Vitaliy"]
[Black "Svane, Frederik"]
[Result "0-1"]
[ECO "B43"]
[WhiteElo "2182"]
[BlackElo "2287"]
[Annotator "NA"]
[PlyCount "54"]
[EventDate "2018.10.03"]
[EventType "team-tourn"]
[EventCountry "GER"]
[SourceTitle "playchess.com"]
[Source "ChessBase"]
[SourceQuality "1"]
[TimeControl "40/5400+30:1800+30"]

1. e4 {[%emt 0:00:00]} c5 {[%emt 0:00:00]} 2. Nf3 {[%emt 0:00:00]} e6 {[%emt 0:00:02]} 3. d4 {[%emt 0:00:00]} cxd4 {[%emt 0:00:07]} 4. Nxd4 {[%emt 0:00:00]} a6 {[%emt 0:00:07]} 5. Nc3 {[%emt 0:00:00]} Qc7 {[%emt 0:00:11]} 6. Qf3 {[%emt 0:00:03]} b5 {[%emt 0:06:03]} 7. Bf4 {[%emt 0:00:27]} d6 $16 {[%emt 0:01:36] LiveBook: 4 Games} 8. Rd1 {[%emt 1:03:28]} Bb7 {[%emt 0:24:51]} 9. Bxb5+ {[%emt 0:03:59]} axb5 {[%emt 0:23:55]} 10. Ndxb5 {[%emt 0:00:16]} Qd7 {[%emt 0:00:14]} 11. Bxd6 {[%emt 0:02:07]} Bxd6 {[%emt 0:00:41]} 12. Nxd6+ {[%emt 0:02:06]} Kf8 {[%emt 0:00:04]} 13. Qg3 {[%emt 0:03:36]} g6 {[%emt 0:00:07]} 14. Nxb7 {[%emt 0:05:52]} Qxb7 {[%emt 0:01:26]} 15. Rd8+ {[%emt 0:00:19]} Kg7 16. Qe5+ {[%emt 0:02:31]} Nf6 {[%emt 0:03:45]} 17. Rxh8 {[%emt 0:00:30]} Nbd7 {[%emt 0:00:16]} 18. Qd4 {[%emt 0:04:56]} e5 {[%emt 0:02:05]} 19. Qe3 {[%emt 0:00:04]} Rxh8 {[%emt 0:00:22]} 20. b3 {[%emt 0:00:14]} Rc8 {[%emt 0:00:30]} 21. f3 {[%emt 0:03:22]} Qb4 {[%emt 0:04:21]} 22. Kd2 {[%emt 0:00:01]} Nc5 {[%emt 0:00:20]} 23. Re1 {[%emt 0:00:44]} Ne6 {[%emt 0:00:51]} 24. g3 {[%emt 0:00:02]} Nd4 {[%emt 0:00:21]} 25. a4 {[%emt 0:00:02]} Rxc3 {[%emt 0:00:10]} 26. Qxc3 {[%emt 0:00:20]} Nxf3+ {[%emt 0:00:03]} 27. Kd3 {[%emt 0:00:14]} Nxe1+ {[%emt 0:00:03] Kd4} 0-1

[Event "GER-chT Youth Countries 2018"]
[Site "Wurzburg"]
[Date "2018.10.05"]
[Round "4"]
[White "Doll, Alexander"]
[Black "Goldbeck, Lars"]
[Result "1-0"]
[ECO "B22"]
[WhiteElo "2122"]
[BlackElo "2184"]
[Annotator "NA"]
[PlyCount "93"]
[EventDate "2018.10.03"]
[EventType "team-tourn"]
[EventCountry "GER"]
[SourceTitle "playchess.com"]
[Source "ChessBase"]
[SourceQuality "1"]
[TimeControl "40/5400+30:1800+30"]

1. e4 {[%emt 0:00:00]} c5 {[%emt 0:00:00]} 2. c3 {[%emt 0:00:00]} Nf6 {[%emt 0:00:00]} 3. e5 {[%emt 0:00:00]} Nd5 {[%emt 0:00:00]} 4. d4 {[%emt 0:01:05]} e6 {[%emt 0:00:51]} 5. Bc4 {[%emt 0:00:45]} cxd4 {[%emt 0:00:39]} 6. Bxd5 {[%emt 0:00:01]} exd5 {[%emt 0:00:01] LiveBook: 11 Games} 7. Qxd4 {[%emt 0:00:12]} Nc6 {[%emt 0:00:06]} 8. Qxd5 {[%emt 0:00:04]} d6 {[%emt 0:00:04]} 9. exd6 {[%emt 0:00:04]} Bxd6 {[%emt 0:00:07]} 10. Qe4+ {[%emt 0:00:05]} Be6 {[%emt 0:00:04]} 11. Nf3 {[%emt 0:00:03]} h6 {[%emt 0:00:07]} 12. O-O {[%emt 0:00:51]} O-O {[%emt 0:00:05]} 13. Bf4 {[%emt 0:10:05]} Bc5 {[%emt 0:00:11]} 14. Nbd2 {[%emt 0:02:10]} Re8 $14 {[%emt 0:00:40]} 15. Rae1 {[%emt 0:04:51]} Bxa2 {[%emt 0:10:51]} 16. Qxe8+ {[%emt 0:01:29]} Qxe8 {[%emt 0:02:02]} 17. Rxe8+ {[%emt 0:00:08]} Rxe8 {[%emt 0:00:03]} 18. b3 {[%emt 0:02:42]} g5 {[%emt 0:00:14]} 19. Be3 {[%emt 0:22:06]} Bxe3 {[%emt 0:04:31]} 20. fxe3 {[%emt 0:00:13]} g4 {[%emt 0:40:14]} 21. Nd4 {[%emt 0:11:23]} Rxe3 {[%emt 0:02:38]} 22. Nxc6 {[%emt 0:03:17]} bxc6 {[%emt 0:00:01]} 23. Ra1 {[%emt 0:01:20]} Bxb3 {[%emt 0:00:09]} 24. Nxb3 {[%emt 0:00:07]} Rxc3 {[%emt 0:00:02]} 25. Nd4 {[%emt 0:00:32]} g3 {[%emt 0:22:43]} 26. hxg3 {[%emt 0:03:52]} Rxg3 {[%emt 0:00:30]} 27. Nxc6 {[%emt 0:00:42]} Rg5 {[%emt 0:05:45]} 28. Rxa7 {[%emt 0:03:04]} Kg7 {[%emt 0:01:28]} 29. Nd4 {[%emt 0:00:55]} Rd5 {[%emt 0:00:13]} 30. Nf3 {[%emt 0:01:04]} Rf5 {[%emt 0:03:49]} 31. Kh2 {[%emt 0:01:13]} Rf6 {[%emt 0:01:32]} 32. Ra5 {[%emt 0:01:44]} Kg6 {[%emt 0:02:24]} 33. Nh4+ {[%emt 0:02:32]} Kg7 {[%emt 0:00:19]} 34. Kg3 {[%emt 0:00:11]} Rb6 {[%emt 0:01:04]} 35. Kg4 {[%emt 0:01:09]} Rf6 {[%emt 0:03:32]} 36. Kh5 {[%emt 0:03:58]} Rb6 {[%emt 0:00:20]} 37. Nf5+ {[%emt 0:00:27]} Kh7 {[%emt 0:00:06]} 38. Ra7 {[%emt 0:00:09]} Rf6 {[%emt 0:00:13]} 39. g4 {[%emt 0:00:16]} Kg8 {[%emt 0:01:13]} 40. Nxh6+ {[%emt 0:01:10]} Kg7 {[%emt 0:00:01]} 41. Rxf7+ {[%emt 0:30:39]} Rxf7 {[%emt 0:30:04]} 42. Nxf7 {[%emt 0:00:06]} Kxf7 {[%emt 0:00:03]} 43. Kh6 {[%emt 0:00:06]} Kg8 {[%emt 0:00:03]} 44. g5 {[%emt 0:00:33]} Kh8 {[%emt 0:00:04]} 45. g6 {[%emt 0:00:11]} Kg8 {[%emt 0:00:00]} 46. g7 {[%emt 0:00:07]} Kf7 {[%emt 0:00:05]} 47. Kh7 {[%emt 0:00:07]} 1-0